bitfinex/quotes_ETHUSD_20230119
["timestamp","ask_amount","ask_price","bid_price","bid_amount"]
[1674150196199,26.16956334,1534.0,1533.9,3.1e-07]
[1674150196393,24.80797501,1534.0,1533.9,3.1e-07]
[1674150197131,25.48875496,1534.0,1533.9,3.1e-07]
[1674150197342,24.80797501,1534.0,1533.9,3.1e-07]
[1674150201273,0.00352724,1533.9,1533.8,0.17736706]
[1674150201606,20.44554922,1533.9,1533.8,0.17736706]
[1674150201766,20.51154922,1533.9,1533.8,0.17736706]
[1674150202188,20.76154922,1533.9,1533.8,0.17736706]
[1674150203322,20.08107149,1533.9,1533.8,0.17736706]
[1674150203528,20.76154922,1533.9,1533.8,0.17736706]
[1674150203829,20.08107149,1533.9,1533.8,0.17736706]
[1674150207575,18.56107149,1533.9,1533.8,0.17736706]
[1674150207799,21.56107149,1533.9,1533.8,0.17736706]
[1674150212154,19.64991483,1533.9,1533.8,0.17736706]
[1674150213426,16.64991483,1533.9,1533.8,0.96936706]
[1674150213641,16.64991483,1533.9,1533.8,0.13136706]
[1674150213853,16.64991483,1533.9,1533.8,2.40636706]
[1674150213854,6.83884724,1533.9,1533.8,2.40636706]
[1674150214192,0.31952724,1533.9,1533.8,2.64700377]
[1674150214409,0.25352724,1533.9,1533.8,2.64700377]
[1674150219377,0.25352724,1533.9,1533.8,2.40636706]
[1674150219912,0.25352724,1533.9,1533.8,0.90136706]
[1674150220446,0.25352724,1533.9,1533.8,0.10936706]
[1674150220758,0.25352724,1533.9,1533.8,1.67036706]
[1674150224207,0.25352724,1533.9,1533.8,0.10936706]
[1674150224495,13.29216724,1533.9,1533.8,0.10936706]
[1674150224695,13.35816724,1533.9,1533.8,0.10936706]
[1674150225140,13.35816724,1533.9,1533.7,1.52]
[1674150225327,13.35816724,1533.9,1533.7,2.55783442]
[1674150226439,13.35816724,1533.9,1533.7,1.52]
[1674150228604,14.03864497,1533.9,1533.6,10.37834421]
[1674150229696,15.0606065,1533.9,1533.6,10.37834421]
[1674150229853,14.03864497,1533.9,1533.6,10.37834421]
[1674150230519,16.19659562,1533.9,1533.6,10.37834421]
[1674150231294,16.19659562,1533.9,1533.6,8.85834421]
[1674150231295,3.97222532,1533.8,1533.6,8.85834421]
[1674150231581,3.97222532,1533.7,1533.6,0.22504421]
[1674150231794,24.03215401,1533.7,1533.6,0.15904421]
[1674150231966,24.09815401,1533.7,1533.6,0.15904421]
[1674150232174,24.34815401,1533.7,1533.6,0.15904421]
[1674150233222,23.66767628,1533.7,1533.6,0.15904421]
[1674150235104,23.66767628,1533.7,1533.6,0.15681451]
[1674150241210,24.34815401,1533.7,1533.6,0.15681451]
[1674150242836,23.66767628,1533.7,1533.6,0.15681451]
[1674150244623,23.16825759,1533.7,1533.6,0.94881451]
[1674150244829,13.35634,1533.7,1533.6,0.94881451]
[1674150245152,13.35634,1533.7,1533.6,0.15681451]
[1674150247036,0.316,1533.7,1533.6,1.71781451]
[1674150247186,0.252,1533.7,1533.6,2.04159596]
[1674150247398,0.25,1533.7,1533.6,2.04159596]
[1674150248023,0.24608843,1533.7,1533.6,2.04159596]
[1674150248237,0.24608843,1533.7,1533.6,0.48059596]
[1674150255319,0.24608843,1533.7,1533.6,0.15681451]
[1674150256231,13.28642843,1533.7,1533.6,0.15681451]
[1674150256459,13.35242843,1533.7,1533.6,0.15681451]
[1674150258756,17.32465375,1533.7,1533.6,0.15681451]
[1674150258978,16.64417602,1533.7,1533.6,0.15681451]
[1674150259216,20.5452555,1533.7,1533.6,0.15681451]
[1674150262120,20.8867393,1533.7,1533.6,0.15681451]
[1674150263906,28.05912766,1533.7,1533.6,0.15681451]
[1674150264118,27.88477777,1533.7,1533.6,0.15681451]
[1674150264381,2.78847778,1533.6,1533.4,0.15904421]
[1674150264589,10.69506106,1533.5,1533.4,0.15904421]
[1674150264737,32.313761,1533.5,1533.4,0.15904421]
[1674150264948,35.813761,1533.5,1533.4,0.15904421]
[1674150265212,40.51612776,1533.5,1533.4,0.15904421]
[1674150265425,43.00184229,1533.5,1533.3,0.16912569]
[1674150265750,21.87594839,1533.4,1533.3,0.16912569]
[1674150265896,23.43194839,1533.4,1533.3,0.16912569]
[1674150266691,24.36225999,1533.4,1533.3,0.16912569]
[1674150267006,27.58286174,1533.4,1533.3,0.16912569]
[1674150267360,26.56156094,1533.4,1533.3,0.16912569]
[1674150267992,27.58286174,1533.4,1533.3,0.16912569]
[1674150268434,26.56156094,1533.4,1533.3,0.16912569]
[1674150270250,27.58286174,1533.4,1533.3,0.16912569]
[1674150270468,26.56156094,1533.4,1533.3,0.16912569]
[1674150271092,23.54156094,1533.4,1533.3,0.16912569]
[1674150271922,22.86124934,1533.4,1533.3,0.16912569]
[1674150276672,19.64064759,1533.4,1533.3,0.16912569]
[1674150277351,19.64064759,1533.4,1533.3,0.11912569]
[1674150280347,16.3489,1533.4,1533.3,0.91112569]
[1674150280747,16.3589,1533.4,1533.3,0.91112569]
[1674150281548,6.83745,1533.4,1533.3,2.68091738]
[1674150282793,0.316,1533.4,1533.3,2.68091738]
[1674150282935,0.25,1533.4,1533.3,2.68091738]
[1674150283779,6.58703,1533.5,1533.3,2.68091738]
[1674150284111,6.58703,1533.5,1533.4,0.26809174]
[1674150291956,0.066,1533.5,1533.4,1.78509174]
[1674150292210,6.83693,1533.6,1533.4,1.78509174]
[1674150292373,6.83693,1533.6,1533.5,1.69350917]
[1674150295491,6.83693,1533.6,1533.4,1.506]
[1674150296034,13.35784,1533.6,1533.3,1.62412569]
[1674150296200,17.32989919,1533.6,1533.3,0.11912569]
[1674150296416,3.29174759,1533.5,1533.3,0.11912569]
[1674150296820,19.56435,1533.4,1533.3,0.11912569]
[1674150297031,19.63035,1533.4,1533.3,0.11912569]
[1674150297448,19.88035,1533.4,1533.3,0.11912569]
[1674150297765,32.01075735,1533.4,1533.3,0.11912569]
[1674150297984,37.54182562,1533.4,1533.3,0.11912569]
[1674150298202,42.55396234,1533.4,1533.3,0.11912569]
[1674150298497,37.01942418,1533.4,1533.3,0.11912569]
[1674150298763,36.67877684,1533.4,1533.3,0.11912569]
[1674150300348,38.06485851,1533.4,1533.3,0.11912569]
[1674150300505,41.72312411,1533.4,1533.3,0.11912569]
[1674150300701,38.88005654,1533.4,1533.2,0.16679121]
[1674150300911,13.15863802,1533.3,1533.2,0.16679121]
[1674150301174,24.89719704,1533.3,1533.2,0.16679121]
[1674150301750,23.64719704,1533.3,1533.2,0.16679121]
[1674150301966,23.30684991,1533.3,1533.2,0.16679121]
[1674150302174,16.64150759,1533.3,1533.2,0.16679121]
[1674150303601,19.64150759,1533.3,1533.2,0.16679121]
[1674150305219,19.64150759,1533.3,1533.2,0.11679121]
[1674150306074,19.64150759,1533.3,1533.2,0.90879121]
[1674150306287,19.64150759,1533.3,1533.2,0.11679121]
[1674150307376,23.08109378,1533.3,1533.2,0.11679121]
[1674150307596,19.64150759,1533.3,1533.2,0.11679121]
[1674150308622,16.34976,1533.3,1533.2,0.90879121]
[1674150308965,13.34976,1533.3,1533.2,0.90879121]
[1674150310007,13.34976,1533.3,1533.2,2.41579121]
[1674150310198,13.34976,1533.3,1533.2,2.67506246]
[1674150310199,6.82788,1533.3,1533.2,2.67506246]
[1674150310581,6.82788,1533.3,1533.2,1.88306246]
[1674150310795,13.34976,1533.3,1533.2,0.11679121]
[1674150311263,13.34976,1533.3,1533.2,0.90879121]
[1674150313111,6.82788,1533.3,1533.2,0.90879121]
[1674150313320,6.82788,1533.3,1533.2,2.68906246]
[1674150313321,0.306,1533.3,1533.2,2.68906246]
[1674150313562,0.25,1533.3,1533.2,2.68906246]
[1674150315868,0.25,1533.3,1533.2,4.20906246]
[1674150316215,3.0,1533.5,1533.2,4.20906246]
[1674150316216,3.0,1533.5,1533.2,9.21136246]
[1674150316388,3.0,1533.5,1533.4,1.52]
[1674150316580,6.83677,1533.6,1533.4,1.52]
[1674150318990,6.83677,1533.6,1533.5,1.52]
[1674150321135,0.316,1533.6,1533.5,1.52]
[1674150321344,0.25,1533.6,1533.5,1.672]
[1674150322831,6.7706,1533.6,1533.5,0.152]
[1674150323020,6.8366,1533.6,1533.4,1.52]
[1674150323439,6.8366,1533.6,1533.3,2.50713625]
[1674150323684,6.8366,1533.6,1533.3,2.44113625]
[1674150326958,0.316,1533.6,1533.3,10.46298625]
[1674150327277,0.25,1533.6,1533.5,1.505]
[1674150327798,0.25,1533.6,1533.4,4.06629862]
[1674150327952,0.25,1533.6,1533.5,0.40662986]
[1674150331313,0.25,1533.6,1533.5,1.90662986]
[1674150332581,0.25,1533.6,1533.5,0.40662986]
[1674150332802,0.25,1533.6,1533.5,5.20837745]
[1674150333009,0.066,1534.0,1533.6,1.5]
[1674150333256,0.722948,1534.1,1533.8,1.506]
[1674150333423,7.241508,1534.1,1533.8,1.506]
[1674150333635,7.307508,1534.1,1533.8,2.50006]
[1674150333972,0.788948,1534.1,1533.8,2.50006]
[1674150334146,0.04239439,1534.1,1533.8,2.50006]
[1674150334356,0.04239439,1534.1,1533.9,3.02]
[1674150334690,0.04239439,1534.1,1534.0,0.302]
[1674150335634,0.04239439,1534.1,1534.0,14.8598]
[1674150335845,0.04239439,1534.1,1534.0,14.9258]
[1674150337126,0.04239439,1534.1,1534.0,13.4058]
[1674150337478,0.04239439,1534.1,1534.0,6.8869]
[1674150338053,0.04239439,1534.1,1534.0,8.3939]
[1674150338311,0.04239439,1534.1,1534.0,14.9128]
[1674150342943,0.04239439,1534.1,1534.0,23.2999]
[1674150344313,0.04239439,1534.1,1534.0,23.2323]
[1674150344739,1e-08,1534.1,1534.0,23.2323]
[1674150345550,1e-08,1534.1,1534.0,26.52404759]
[1674150345972,1e-08,1534.1,1534.0,26.75404759]
[1674150346164,1e-08,1534.1,1534.0,28.27404759]
[1674150346372,1e-08,1534.1,1534.0,27.01885759]
[1674150346595,1e-08,1534.1,1534.0,27.02085759]
[1674150347028,1e-08,1534.1,1534.0,30.02085759]
[1674150347205,1e-08,1534.1,1534.0,30.50985759]
[1674150349774,1e-08,1534.1,1534.0,37.33885759]
[1674150349990,0.04386442,1534.3,1534.1,0.00199999]
[1674150350240,0.04386442,1534.3,1534.2,25.87989759]
[1674150350354,0.04386442,1534.3,1534.2,48.59689759]
[1674150352008,0.04386442,1534.3,1534.2,49.25383002]
[1674150352229,0.04386442,1534.3,1534.2,49.91076245]
[1674150352370,0.04386442,1534.3,1534.2,49.25383002]
[1674150352754,0.04386442,1534.3,1534.2,55.21120392]
[1674150352898,0.04386442,1534.3,1534.2,55.70010392]
[1674150354482,0.04386442,1534.3,1534.2,55.21120392]
[1674150357220,0.04386442,1534.3,1534.2,49.5125239]
[1674150357457,0.04386442,1534.3,1534.2,43.55515]
[1674150357625,0.04386442,1534.3,1534.2,40.55515]
[1674150363402,0.04386442,1534.3,1534.2,32.5231]
[1674150363616,0.04386442,1534.3,1534.2,26.00505]
[1674150366197,13.07912442,1534.3,1534.2,0.066]
[1674150366413,10.1115143,1534.3,1534.1,0.00199999]
[1674150367148,8.5915143,1534.3,1534.1,0.00199999]
[1674150369927,0.10986442,1534.3,1534.1,0.00199999]
[1674150370143,0.04386442,1534.3,1534.1,0.00199999]
[1674150372299,0.04386442,1534.3,1534.1,1.50199999]
[1674150372872,0.04386442,1534.3,1534.1,13.03888999]
[1674150373088,0.04386442,1534.4,1534.1,13.10488999]
[1674150373257,0.04386442,1534.4,1534.2,7.828479]
[1674150373474,0.04386442,1534.4,1534.2,14.412529]
[1674150373695,0.04386442,1534.4,1534.2,15.932529]
[1674150373914,0.04386442,1534.4,1534.3,1.5]
[1674150374123,0.04386442,1534.4,1534.3,9.7608829]
[1674150374335,0.04386442,1534.4,1534.3,9.8268829]
[1674150374934,0.04386442,1534.4,1534.3,18.13626049]
[1674150375144,0.04386442,1534.4,1534.3,18.36626049]
[1674150375357,0.04680563,1534.5,1534.4,1.5]
[1674150375622,0.04680563,1534.5,1534.4,17.87602605]
[1674150375812,0.04680563,1534.5,1534.4,17.94202605]
[1674150377098,7.75985574,1534.8,1534.5,8.01656]
[1674150377284,7.75985574,1534.8,1534.5,8.08256]
[1674150377454,0.11405574,1534.8,1534.6,0.808256]
[1674150377669,0.04805574,1534.8,1534.6,0.808256]
[1674150378728,0.04805574,1534.8,1534.6,7.324546]
[1674150378936,0.04805574,1534.8,1534.6,7.390546]
[1674150379203,0.04805574,1534.8,1534.7,0.7390546]
[1674150380672,0.04805574,1534.8,1534.7,17.06266219]
[1674150380984,0.04805574,1534.8,1534.7,17.12866219]
[1674150381137,0.04805574,1534.8,1534.7,17.35866219]
[1674150385552,0.04805574,1534.8,1534.7,17.12866219]
[1674150386283,0.04805574,1534.8,1534.7,13.8369146]
[1674150388391,0.04805574,1534.8,1534.7,7.3209846]
[1674150391333,0.04805574,1534.8,1534.7,0.066]
[1674150391547,0.04805574,1534.8,1534.6,10.065]
[1674150392575,0.04805574,1534.8,1534.6,10.063]
[1674150392780,0.04805574,1534.8,1534.6,0.066]
[1674150392781,3.06805574,1534.8,1534.6,0.066]
[1674150392975,4.08075594,1534.8,1534.5,8.3055]
[1674150393199,2.58075594,1534.8,1534.5,8.3055]
[1674150393651,1.90020233,1534.8,1534.5,8.3055]
[1674150395751,4.08075594,1534.8,1534.5,8.3055]
[1674150395935,2.58075594,1534.8,1534.5,8.3055]
[1674150396105,4.08075594,1534.8,1534.5,8.3055]
[1674150396318,0.40807559,1534.7,1534.5,0.066]
[1674150396532,9.1116192,1534.7,1534.3,16.19562]
[1674150396736,2.41116192,1534.6,1534.3,0.066]
[1674150397005,2.41116192,1534.6,1534.2,15.17332]
[1674150397006,0.91116192,1534.6,1534.2,15.17332]
[1674150397160,15.6936092,1534.7,1534.2,15.17332]
[1674150401397,1.5,1534.6,1534.2,15.17332]
[1674150401902,15.6936092,1534.7,1534.2,15.17121376]
[1674150402051,1.56936092,1534.6,1534.2,15.17121376]
[1674150403474,15.6936092,1534.7,1534.2,15.17121376]
[1674150405047,1.5,1534.6,1534.2,15.17121376]
[1674150405627,16.71450994,1534.7,1534.2,15.17121376]
[1674150405946,0.68055361,1534.6,1534.2,15.17121376]
[1674150406413,3.8520046,1534.6,1534.2,15.17121376]
[1674150407155,8.71744361,1534.5,1534.2,0.066]
[1674150407313,8.78344361,1534.5,1534.1,9.8871]
[1674150408307,8.10289,1534.5,1534.1,9.8871]
[1674150408461,12.14876914,1534.5,1534.1,9.8871]
[1674150409637,11.46821553,1534.5,1534.1,9.8871]
[1674150410062,12.14876914,1534.5,1534.1,9.8871]
[1674150411567,13.64876914,1534.5,1534.1,9.8871]
[1674150411738,12.14876914,1534.5,1534.1,9.8871]
[1674150412168,11.46821553,1534.5,1534.1,9.8871]
[1674150412390,8.10289,1534.5,1534.1,13.691646]
[1674150412816,6.58289,1534.5,1534.1,13.691646]
[1674150413210,6.58289,1534.5,1534.1,20.210116]
[1674150416344,6.58289,1534.5,1534.1,20.208116]
[1674150416565,6.58289,1534.5,1534.1,20.210116]
[1674150418506,11.89627907,1534.5,1534.1,16.40557]
[1674150419124,11.21572546,1534.5,1534.1,16.40557]
[1674150420400,8.10289,1534.5,1534.1,16.40557]
[1674150420594,6.58289,1534.5,1534.1,16.40557]
[1674150427222,7.26344361,1534.5,1534.1,16.40557]
[1674150427550,6.58289,1534.5,1534.1,16.40557]
[1674150427760,7.26344361,1534.5,1534.1,16.40557]
[1674150429354,7.26344361,1534.5,1534.1,20.210099]
[1674150431415,7.26344361,1534.5,1534.1,21.90794955]
[1674150434364,8.28434435,1534.5,1534.1,21.90794955]
[1674150434604,0.68055361,1534.4,1534.1,21.90794955]
[1674150439036,0.68055361,1534.3,1534.1,6.58447]
[1674150439254,2.20055361,1534.2,1534.1,0.06567516]
[1674150439405,2.20055361,1534.2,1534.0,0.06567516]
[1674150439406,3.90301958,1534.2,1534.0,0.06567516]
[1674150439610,2.42059654,1534.1,1533.7,17.37015885]
[1674150439843,2.42059654,1534.1,1533.8,1.1321683]
[1674150440057,8.93908654,1534.1,1533.8,1.1321683]
[1674150440244,9.00508654,1534.1,1533.8,1.1321683]
[1674150440693,8.32354536,1534.1,1533.8,1.1321683]
[1674150440908,9.00508654,1534.1,1533.8,1.1321683]
[1674150441099,8.32354536,1534.1,1533.8,1.1321683]
[1674150441310,8.32354536,1534.1,1533.7,10.16849854]
[1674150441311,0.83235454,1534.0,1533.7,10.16849854]
[1674150441520,8.87148454,1534.0,1533.7,10.16849854]
[1674150441766,10.43748454,1534.0,1533.7,10.16849854]
[1674150441979,10.43748454,1534.0,1533.7,8.47027516]
[1674150442127,8.93748454,1534.0,1533.7,8.47027516]
[1674150442874,10.43748454,1534.0,1533.7,8.47027516]
[1674150443333,8.93748454,1534.0,1533.7,8.47027516]
[1674150443657,10.43748454,1534.0,1533.7,8.47027516]
[1674150443832,8.93748454,1534.0,1533.7,8.47027516]
[1674150444184,1.52,1533.8,1533.7,0.06567516]
[1674150444377,1.5,1533.8,1533.6,0.06567516]
[1674150444548,8.97915845,1533.9,1533.5,6.72185365]
[1674150445630,2.41691584,1533.8,1533.5,0.20104365]
[1674150445921,1.52,1533.7,1533.5,0.13536849]
[1674150446165,1.516,1533.6,1533.5,0.13536849]
[1674150446387,16.0612,1533.6,1533.5,0.13536849]
[1674150446604,21.36084235,1533.6,1533.5,0.13536849]
[1674150447439,26.36984235,1533.6,1533.5,0.13536849]
[1674150448013,22.86984235,1533.6,1533.5,0.13536849]
[1674150448224,26.36984235,1533.6,1533.5,0.13536849]
[1674150448678,22.88084235,1533.6,1533.5,0.13536849]
[1674150448868,26.38084235,1533.6,1533.5,0.03536849]
[1674150449077,26.38084235,1533.6,1533.4,0.13536849]
[1674150449340,23.97189182,1533.5,1533.4,0.13536849]
[1674150449481,27.03789182,1533.5,1533.4,0.13536849]
[1674150449951,23.53789182,1533.5,1533.4,0.13536849]
[1674150450750,26.57589182,1533.5,1533.4,0.13536849]
[1674150451546,30.07589182,1533.5,1533.4,0.13536849]
[1674150451731,30.30589182,1533.5,1533.4,0.13536849]
[1674150451894,26.80589182,1533.5,1533.4,0.13536849]
[1674150452529,30.30589182,1533.5,1533.4,0.13536849]
[1674150452745,26.80589182,1533.5,1533.4,0.13536849]
[1674150453785,30.30589182,1533.5,1533.4,0.00036849]
[1674150454481,26.80589182,1533.5,1533.4,0.00036849]
[1674150455536,25.05589182,1533.5,1533.4,0.00036849]
[1674150457265,23.55589182,1533.5,1533.4,0.00036849]
[1674150457471,20.91780759,1533.5,1533.4,0.00036849]
[1674150458164,19.39980759,1533.5,1533.4,0.00036849]
[1674150464456,20.91980759,1533.5,1533.4,0.00036849]
[1674150473372,16.10806,1533.5,1533.4,0.00036849]
[1674150475587,13.10806,1533.5,1533.4,0.00036849]
[1674150477161,5.90751296,1533.5,1533.4,0.00036849]
[1674150477394,5.90751296,1533.5,1533.4,0.79236849]
[1674150477772,5.90751296,1533.5,1533.4,0.88651896]
[1674150478571,5.90751296,1533.5,1533.4,0.09451896]
[1674150478726,5.90751296,1533.5,1533.4,0.00036849]
[1674150481198,7.40751296,1533.5,1533.4,0.00036849]
[1674150481517,5.90751296,1533.5,1533.4,0.00036849]
[1674150482084,7.40751296,1533.5,1533.4,0.00036849]
[1674150482715,5.90751296,1533.5,1533.4,0.00036849]
[1674150482929,7.40751296,1533.5,1533.4,0.00036849]
[1674150483197,5.90751296,1533.5,1533.4,0.00036849]
[1674150484060,7.40751296,1533.5,1533.4,0.00036849]
[1674150484215,5.90751296,1533.5,1533.4,0.00036849]
[1674150486431,7.40751296,1533.5,1533.4,0.00036849]
[1674150486624,5.90751296,1533.5,1533.4,0.00036849]
[1674150489639,7.40751296,1533.5,1533.4,0.00036849]
[1674150489928,5.90751296,1533.5,1533.4,0.00036849]
[1674150490086,7.40751296,1533.5,1533.4,0.00036849]
[1674150490299,13.92854296,1533.5,1533.4,0.00036849]
[1674150490766,12.42854296,1533.5,1533.4,0.00036849]
[1674150492296,5.90751296,1533.5,1533.4,0.00036849]
[1674150493565,7.40751296,1533.5,1533.4,0.00036849]
[1674150493797,5.90751296,1533.5,1533.4,0.00036849]
[1674150493991,7.40751296,1533.5,1533.4,0.00036849]
[1674150494603,5.90751296,1533.5,1533.4,0.00036849]
[1674150496579,7.40751296,1533.5,1533.4,0.00036849]
[1674150497710,5.90751296,1533.5,1533.4,0.00036849]
[1674150498024,12.42854296,1533.5,1533.4,0.00036849]
[1674150501350,0.00170884,1533.4,1533.3,0.14913623]
[1674150501562,6.52315884,1533.4,1533.3,0.14913623]
[1674150501767,6.58915884,1533.4,1533.3,0.14913623]
[1674150510559,13.11060884,1533.4,1533.3,0.14913623]
[1674150510706,16.88190713,1533.4,1533.3,0.14913623]
[1674150511033,20.85331452,1533.4,1533.3,0.14913623]
[1674150511248,19.83241378,1533.4,1533.3,0.14913623]
[1674150512601,20.85265032,1533.4,1533.3,0.14913623]
[1674150512811,19.49144934,1533.4,1533.3,0.14913623]
[1674150513251,20.1711993,1533.4,1533.3,0.14913623]
[1674150514404,19.15096276,1533.4,1533.3,0.14913623]
[1674150516176,18.4712128,1533.4,1533.3,0.14913623]
[1674150516374,17.08210639,1533.4,1533.3,0.14913623]
[1674150516638,16.40235643,1533.4,1533.3,0.14913623]
[1674150516797,6.58915884,1533.4,1533.3,0.94113623]
[1674150517020,0.06770884,1533.4,1533.3,0.94113623]
[1674150517229,0.00170884,1533.4,1533.3,1.04692897]
[1674150519576,0.00170884,1533.4,1533.3,0.25492897]
[1674150523850,0.00170884,1533.4,1533.3,0.14913623]
[1674150524701,0.00170884,1533.4,1533.3,0.14629569]
[1674150525798,6.52315884,1533.4,1533.3,0.14629569]
[1674150526002,8.08915884,1533.4,1533.3,0.14629569]
[1674150526224,6.58915884,1533.4,1533.3,0.14629569]
[1674150526854,16.00556263,1533.4,1533.3,0.14629569]
[1674150529584,19.29731022,1533.4,1533.3,0.14629569]
[1674150530721,20.31406807,1533.4,1533.3,0.14629569]
[1674150530895,19.29383153,1533.4,1533.3,0.14629569]
[1674150531554,20.31406807,1533.4,1533.3,0.14629569]
[1674150531811,19.63431811,1533.4,1533.3,0.14629569]
[1674150532258,22.63431811,1533.4,1533.3,0.14629569]
[1674150535047,24.81125054,1533.4,1533.3,0.14629569]
[1674150535362,26.17245152,1533.4,1533.3,0.14629569]
[1674150536059,25.51551909,1533.4,1533.3,0.14629569]
[1674150536484,24.15431811,1533.4,1533.3,0.14629569]
[1674150536942,24.83368935,1533.4,1533.3,0.14629569]
[1674150538389,23.81345281,1533.4,1533.3,0.14629569]
[1674150539723,24.83368935,1533.4,1533.3,0.14629569]
[1674150539996,24.15431811,1533.4,1533.3,0.14629569]
[1674150540674,25.51551909,1533.4,1533.3,0.14629569]
[1674150540889,24.15431811,1533.4,1533.3,0.14629569]
[1674150541354,24.83379258,1533.4,1533.3,0.14629569]
[1674150542842,24.15431811,1533.4,1533.3,0.14629569]
[1674150544820,24.8337331,1533.4,1533.3,0.14629569]
[1674150544990,24.15431811,1533.4,1533.3,0.14629569]
[1674150546831,25.51551909,1533.4,1533.3,0.14629569]
[1674150547412,24.15431811,1533.4,1533.3,0.14629569]
[1674150547983,24.49528255,1533.4,1533.3,0.14629569]
[1674150548217,25.51443427,1533.4,1533.3,0.14629569]
[1674150548412,24.49528255,1533.4,1533.3,0.14629569]
[1674150548772,29.69764931,1533.4,1533.3,0.14629569]
[1674150549087,24.83644833,1533.4,1533.3,0.14629569]
[1674150549306,24.49301376,1533.4,1533.3,0.14629569]
[1674150550569,25.51205601,1533.4,1533.3,0.14629569]
[1674150551121,24.15312382,1533.4,1533.2,0.11679121]
[1674150551332,24.15312382,1533.4,1532.8,1.37660971]
[1674150551333,19.45932525,1533.3,1532.7,0.054]
[1674150551517,3.29174759,1532.9,1532.4,0.25621685]
[1674150551726,3.29174759,1532.8,1532.5,0.16912383]
[1674150552048,16.33974759,1532.8,1532.5,0.16912383]
[1674150552223,16.40574759,1532.8,1532.5,0.2540079]
[1674150552430,3.29174759,1532.7,1532.5,0.16912383]
[1674150552632,13.0497,1532.6,1532.5,0.16912383]
[1674150552805,13.1157,1532.6,1532.5,0.16912383]
[1674150553019,16.40744759,1532.6,1532.5,0.16912383]
[1674150553231,17.20867158,1532.6,1532.5,0.16912383]
[1674150556803,16.40744759,1532.6,1532.5,0.16912383]
[1674150558780,13.1157,1532.6,1532.5,0.16912383]
[1674150564460,16.1157,1532.6,1532.5,0.16912383]
[1674150570910,19.40744759,1532.6,1532.5,0.16912383]
[1674150574560,19.40744759,1532.6,1532.5,0.16624453]
[1674150574771,22.42387541,1532.6,1532.5,0.16624453]
[1674150576148,22.42387541,1532.6,1532.5,0.16349014]
[1674150581703,10.87417541,1532.6,1532.5,0.16349014]
[1674150582014,22.42387541,1532.6,1532.5,0.16349014]
[1674150585485,23.10236984,1532.6,1532.5,0.16349014]
[1674150585694,24.12011149,1532.6,1532.5,0.16349014]
[1674150585929,25.29986428,1532.6,1532.4,0.19021685]
[1674150586084,19.95742417,1532.5,1532.4,0.19021685]
[1674150586281,34.58198417,1532.5,1532.4,0.19021685]
[1674150586707,33.905038,1532.5,1532.4,0.19021685]
[1674150587129,34.58196298,1532.5,1532.4,0.19021685]
[1674150587340,34.78827691,1532.5,1532.4,6.85e-06]
[1674150587703,3.017,1532.4,1531.9,17.6479]
[1674150587910,33.90414759,1532.3,1531.9,17.6479]
[1674150588072,19.58094,1532.1,1531.9,17.6479]
[1674150588282,19.64694,1532.1,1531.9,0.066]
[1674150588618,19.64694,1532.1,1531.7,0.18985591]
[1674150588950,19.64694,1532.1,1531.7,2.27611553]
[1674150590693,19.64694,1532.1,1531.7,3.55511553]
[1674150594269,19.64694,1532.1,1531.7,1.46885591]
[1674150595736,19.64694,1532.1,1531.8,1.274]
[1674150595995,0.066,1532.1,1531.8,1.274]
[1674150596159,6.59286,1532.2,1532.0,2.562]
[1674150596532,6.59286,1532.2,1532.1,1.282]
[1674150597454,6.59286,1532.2,1532.1,1.5384]
[1674150597939,6.59286,1532.2,1532.1,0.2564]
[1674150600720,6.59286,1532.2,1532.1,1.5374]
[1674150603044,6.59286,1532.2,1532.1,1.281]
[1674150603565,6.59286,1532.2,1532.0,1.282]
[1674150603787,6.59286,1532.2,1531.9,11.3256]
[1674150605880,13.11972,1532.2,1531.9,11.3256]
[1674150607127,16.41146759,1532.2,1531.9,10.0436]
[1674150607333,19.02874059,1532.2,1531.9,10.0436]
[1674150607916,13.11972,1532.2,1531.9,11.3256]
[1674150608131,13.11972,1532.2,1532.0,1.282]
[1674150608652,13.11972,1532.2,1532.0,2.782]
[1674150609455,6.59286,1532.2,1532.0,1.282]
[1674150609669,6.59286,1532.2,1532.1,0.1282]
[1674150609895,13.11972,1532.2,1532.0,1.282]
[1674150613004,13.11972,1532.2,1531.9,11.3256]
[1674150614309,13.11972,1532.2,1531.9,11.5726]
[1674150615420,13.11972,1532.2,1531.9,13.72852977]
[1674150621256,13.11972,1532.2,1531.9,14.41017008]
[1674150621412,13.11972,1532.2,1532.0,1.13347737]
[1674150621833,13.11972,1532.2,1531.9,14.41017008]
[1674150622367,13.11972,1532.2,1531.9,11.5726]
[1674150623053,13.11972,1532.2,1531.9,12.25424031]
[1674150623367,13.11972,1532.2,1532.0,1.13348011]
[1674150624178,13.11972,1532.2,1531.9,11.5726]
[1674150625001,6.59286,1532.2,1531.9,13.62684403]
[1674150625233,6.59286,1532.2,1532.0,1.531]
[1674150625469,6.59286,1532.2,1532.0,3.031]
[1674150625774,7.20255188,1532.6,1532.2,1.142861]
[1674150625930,6.59118,1532.6,1532.3,0.1142861]
[1674150626140,6.59118,1532.6,1532.3,1.24754272]
[1674150626404,6.59118,1532.6,1532.3,0.1142861]
[1674150626784,6.59118,1532.6,1532.3,1.6142861]
[1674150627022,6.59118,1532.6,1532.4,0.16142861]
[1674150627211,6.59118,1532.6,1532.5,1.531]
[1674150629190,0.066,1532.6,1532.5,1.531]
[1674150629401,27.60933,1532.7,1532.5,1.531]
[1674150629840,19.63993,1532.7,1532.5,1.531]
[1674150634918,6.59045,1532.7,1532.6,1.517]
[1674150635283,0.066,1532.7,1532.6,1.517]
[1674150635493,6.59013,1532.8,1532.6,1.517]
[1674150638646,6.59013,1532.8,1532.5,0.1531]
[1674150639546,13.11426,1532.8,1532.5,0.1531]
[1674150640066,13.79163188,1532.8,1532.4,7.7403]
[1674150642117,13.79163188,1532.8,1532.4,9.2693]
[1674150642118,6.59013,1532.8,1532.4,9.2693]
[1674150642581,6.59013,1532.8,1532.5,1.5]
[1674150642848,6.59013,1532.8,1532.6,0.15]
[1674150643386,6.59013,1532.8,1532.4,15.79491]
[1674150644256,6.59013,1532.8,1532.5,1.5]
[1674150645112,0.066,1532.8,1532.5,3.031]
[1674150645432,14.68699,1532.9,1532.6,1.531]
[1674150645653,21.21085,1532.9,1532.5,12.8387]
[1674150645794,21.21085,1532.9,1532.5,11.4047]
[1674150646016,21.88822188,1532.9,1532.5,11.4047]
[1674150646217,21.88822188,1532.9,1532.5,13.965161]
[1674150646555,25.17996947,1532.9,1532.5,9.8737]